bitfinex-derivatives/quotes_SOLF0:USTF0_20250509
["timestamp","ask_amount","ask_price","bid_price","bid_amount"]
[1746753350921,4.1046,163.21,163.15,1.22586576]
[1746753351117,359.0954,163.24,163.15,1.22586576]
[1746753351524,6.127,163.22,163.15,7.35546576]
[1746753351727,359.0954,163.24,163.15,7.35546576]
[1746753352318,6.1274,163.21,163.15,1.22586576]
[1746753352728,6.1268,163.23,163.16,6.1292]
[1746753353328,6.1268,163.23,163.17,1.22571551]
[1746753353628,6.127,163.22,163.17,1.22571551]
[1746753354323,6.1266,163.23,163.17,7.35451551]
[1746753355126,6.127,163.22,163.17,1.22571551]
[1746753355626,2.0954,163.24,163.17,1.22571551]
[1746753357533,6.1282,163.19,163.17,1.22571551]
[1746753357730,40.78,163.19,163.17,1.22571551]
[1746753358034,40.78,163.19,163.15,1.22586576]
[1746753358237,6.1292,163.16,163.15,1.22586576]
[1746753358637,1.9528,163.18,163.15,1.22586576]
[1746753358838,1.9528,163.18,163.11,1.22616639]
[1746753359040,4.0075,163.18,163.11,1.22616639]
[1746753359234,6.1303,163.14,163.11,1.22616639]
[1746753359433,4.0075,163.18,163.11,1.22616639]
[1746753359939,6.1303,163.14,163.11,1.22616639]
[1746753360135,4.0075,163.18,163.11,1.22616639]
[1746753360531,40.78,163.19,163.11,1.22616639]
[1746753360932,6.1291,163.17,163.11,1.22616639]
[1746753361134,40.78,163.19,163.11,1.22616639]
[1746753361338,40.78,163.19,163.12,6.1306]
[1746753361639,6.1293,163.16,163.11,1.22616639]
[1746753361840,40.78,163.19,163.11,1.22616639]
[1746753362041,6.1291,163.17,163.12,6.1307]
[1746753362239,40.78,163.19,163.11,1.22616639]
[1746753362641,6.1292,163.16,163.11,1.22616639]
[1746753362843,40.78,163.19,163.11,1.22616639]
[1746753363443,6.1288,163.17,163.12,6.1304]
[1746753363739,40.78,163.19,163.11,1.22616639]
[1746753363942,40.78,163.19,163.15,6.1293]
[1746753364145,40.78,163.19,163.11,1.22616639]
[1746753364339,40.78,163.19,163.12,2.0677]
[1746753364542,6.1278,163.2,163.12,2.0677]
[1746753364740,42.7975,163.23,163.12,2.0677]
[1746753365138,42.7975,163.23,163.13,1.9624]
[1746753365343,2.0547,163.24,163.14,9.75357685]
[1746753365540,2.0547,163.24,163.15,41.28]
[1746753366544,2.0547,163.24,163.13,8.0925]
[1746753366743,2.0547,163.24,163.13,6.1301]
[1746753366936,41.68,163.23,163.11,42.80616639]
[1746753367743,6.1287,163.18,163.12,6.1304]
[1746753367944,40.78,163.19,163.11,42.80616639]
[1746753369045,6.1287,163.18,163.13,6.13]
[1746753370144,6.1289,163.17,163.13,6.13]
[1746753370346,40.78,163.19,163.11,1.22616639]
[1746753370645,5.9374,163.18,163.11,1.22616639]
[1746753370845,6.1299,163.15,163.11,1.22616639]
[1746753371145,5.9374,163.18,163.11,1.22616639]
[1746753371445,6.1307,163.12,163.11,1.22616639]
[1746753371647,40.78,163.14,163.11,1.22616639]
[1746753371944,6.1303,163.13,163.11,1.22616639]
[1746753372145,40.78,163.14,163.11,1.22616639]
[1746753372547,40.78,163.14,163.11,7.35696639]
[1746753372747,40.78,163.14,163.11,1.22616639]
[1746753372947,40.78,163.18,163.11,1.22616639]
[1746753373848,40.78,163.18,163.14,6.1296]
[1746753374048,40.78,163.18,163.11,1.22616639]
[1746753375045,40.78,163.18,163.15,6.1293]
[1746753376452,46.9073,163.22,163.11,1.22616639]
[1746753376746,40.78,163.22,163.13,9.75357685]
[1746753376943,40.78,163.22,163.14,3.9795]
[1746753378151,40.78,163.22,163.19,6.128]
[1746753378346,42.8416,163.26,163.14,3.9795]
[1746753378750,42.8416,163.26,163.19,6.1278]
[1746753378953,42.8416,163.26,163.14,3.9795]
[1746753378954,42.8416,163.26,163.16,41.48]
[1746753379146,42.8416,163.26,163.17,9.75357685]
[1746753379351,42.8416,163.26,163.21,6.1273]
[1746753379553,42.8416,163.26,163.16,41.48]
[1746753379741,42.8416,163.26,163.16,6.1289]
[1746753380052,42.8416,163.26,163.13,41.48]
[1746753380247,1.91,163.25,163.13,41.48]
[1746753380448,6.1278,163.2,163.13,41.48]
[1746753380651,1.91,163.25,163.13,41.48]
[1746753380852,6.128,163.2,163.14,6.1299]
[1746753381049,40.78,163.21,163.13,41.48]
[1746753381550,40.78,163.21,163.13,51.23357685]
[1746753381745,44.05,163.25,163.13,51.23357685]
[1746753381948,44.05,163.25,163.2,6.1273]
[1746753382852,44.05,163.25,163.21,6.1272]
[1746753383352,42.14,163.25,163.22,6.1269]
[1746753383552,42.14,163.25,163.13,51.23357685]
[1746753383946,529.7,163.28,163.13,51.23357685]
[1746753384152,48.2654,163.27,163.13,51.23357685]
[1746753384348,42.14,163.27,163.13,51.23357685]
[1746753384550,42.14,163.27,163.13,41.48]
[1746753385348,6.1269,163.23,163.13,41.48]
[1746753385650,46.1507,163.27,163.13,41.48]
[1746753385957,6.1269,163.23,163.13,41.48]
[1746753386152,46.1507,163.27,163.13,41.48]
[1746753386549,6.1259,163.25,163.13,41.48]
[1746753386854,46.1507,163.27,163.13,41.48]
[1746753387048,46.1507,163.27,163.16,9.75357685]
[1746753387253,46.1507,163.27,163.17,4.0145]
[1746753387655,6.1261,163.25,163.21,6.1272]
[1746753388055,46.1507,163.27,163.17,4.0145]
[1746753388856,6.1259,163.25,163.21,6.127]
[1746753389351,6.1259,163.25,163.17,4.0145]
[1746753390050,6.1259,163.25,163.21,6.1271]
[1746753390855,6.1259,163.25,163.22,6.1269]
[1746753391052,6.1259,163.25,163.17,4.0145]
[1746753391859,6.1256,163.26,163.17,4.0145]
[1746753392357,42.14,163.27,163.17,4.0145]
[1746753392557,48.2652,163.27,163.18,2.0704]
[1746753392758,48.2652,163.27,163.19,42.58]
[1746753392953,48.2652,163.27,163.23,6.1263]
[1746753393358,2.0278,163.3,163.19,42.58]
[1746753393655,360.9478,163.34,163.22,9.75357685]
[1746753393853,6.1229,163.33,163.22,51.87357685]
[1746753394057,112.38618262,163.35,163.22,51.87357685]
[1746753394464,6.1225,163.34,163.22,51.87357685]
[1746753394862,3.9478,163.39,163.22,42.12]
[1746753395061,3.9478,163.39,163.29,9.75357685]
[1746753395262,3.9478,163.39,163.29,53.51357685]
[1746753395563,8.0667,163.39,163.29,53.51357685]
[1746753395863,1.9458,163.39,163.29,53.51357685]
[1746753396065,6.1218,163.36,163.29,53.51357685]
[1746753396260,1.9458,163.39,163.29,53.51357685]
[1746753396463,1.9458,163.39,163.3,11.68437685]
[1746753396659,8.0667,163.39,163.33,6.1228]
[1746753396869,6.1209,163.39,163.33,6.1228]
[1746753397066,85.57821604,163.4,163.33,6.1228]
[1746753397361,85.57821604,163.4,163.34,9.75357685]
[1746753397564,85.57821604,163.4,163.35,49.88]
[1746753397761,85.57821604,163.4,163.38,6.1206]
[1746753398069,46.66,163.45,163.37,9.75357685]
[1746753398360,46.66,163.45,163.35,49.88]
[1746753398361,6.1184,163.45,163.36,9.75357685]
[1746753398569,51.5338,163.5,163.36,9.75357685]
[1746753398866,61.28737685,163.5,163.35,49.88]
[1746753399166,1.10327245,163.49,163.35,49.88]
[1746753399668,1.10327245,163.49,163.36,9.75357685]
[1746753399858,2.0295,163.5,163.36,9.75357685]
[1746753400063,85.57821604,163.53,163.37,8.50737307]
[1746753400567,91.69371604,163.53,163.46,6.1179]
[1746753400864,85.57821604,163.53,163.42,55.76]
[1746753401068,85.57821604,163.53,163.43,1.9633]
[1746753401370,54.78,163.58,163.43,8.42797307]
[1746753401567,85.57821604,163.6,163.44,9.75357685]
[1746753401868,85.57821604,163.6,163.48,9.75357685]
[1746753402069,6.1139,163.57,163.5,6.1163]
[1746753402274,85.57821604,163.6,163.49,1.9958]
[1746753402570,85.57821604,163.6,163.45,2.0964]
[1746753402772,85.57821604,163.6,163.45,4.0922]
[1746753403170,146.59821604,163.6,163.45,4.0922]
[1746753403369,85.57821604,163.6,163.45,4.0922]
[1746753403571,85.57821604,163.6,163.45,13.84577685]
[1746753403770,6.1146,163.55,163.45,13.84577685]
[1746753403964,95.33179289,163.6,163.45,4.0922]
[1746753404162,529.0,163.59,163.43,1.9633]
[1746753404362,9.75357685,163.56,163.42,55.76]
[1746753404562,62.9,163.55,163.42,55.76]
[1746753404770,6.1169,163.49,163.42,61.8792]
[1746753404966,4.03,163.54,163.42,55.76]
[1746753405170,13.78357685,163.54,163.39,6.0187]
[1746753405378,1.9321,163.53,163.39,6.0187]
[1746753405676,1.9321,163.53,163.39,3.9959]
[1746753405877,1.9321,163.53,163.35,2.0228]
[1746753406375,9.75357685,163.5,163.35,2.0228]
[1746753406573,528.86,163.49,163.32,3.9959]
[1746753406774,9.75357685,163.46,163.32,3.9959]
[1746753406974,68.49,163.45,163.33,6.1228]
[1746753407172,68.49,163.45,163.32,3.9959]
[1746753407478,6.1199,163.41,163.34,6.1225]
[1746753407678,68.49,163.45,163.32,3.9959]
[1746753407978,6.1193,163.43,163.32,3.9959]
[1746753408276,68.49,163.45,163.32,3.9959]
[1746753408577,68.49,163.45,163.34,9.75357685]
[1746753408770,528.86,163.49,163.34,9.75357685]
[1746753408972,6.1172,163.48,163.38,9.75357685]
[1746753409370,64.46,163.51,163.38,9.75357685]
[1746753409773,64.46,163.51,163.37,15.77279983]
[1746753410076,64.46,163.51,163.41,15.77279983]
[1746753410374,528.9,163.57,163.41,15.77279983]
[1746753410576,6.1152,163.54,163.42,6.1364]
[1746753410877,528.9,163.57,163.42,6.1364]
[1746753411080,6.1134,163.59,163.5,6.1164]
[1746753411279,6.1134,163.59,163.44,15.77279983]
[1746753411280,6.1134,163.59,163.48,15.77279983]
[1746753411477,6.1134,163.59,163.49,15.77279983]
[1746753411677,6.1128,163.6,163.51,6.116]
[1746753412079,5.7561,163.63,163.45,62.0]
[1746753412272,15.77279983,163.62,163.42,21.90919983]
[1746753412472,372.77279983,163.62,163.42,6.1364]
[1746753412673,6.114,163.57,163.47,6.1174]
[1746753412875,357.0,163.62,163.47,6.1174]
[1746753413079,357.0,163.62,163.42,6.1364]
[1746753413288,6.1149,163.55,163.42,6.1364]
[1746753413484,3.8657,163.63,163.42,6.1364]
[1746753413969,1.8997,163.63,163.42,6.1364]
[1746753414173,1.8997,163.63,163.44,15.77279983]
[1746753414375,1.8997,163.63,163.5,15.77279983]
[1746753414575,1.8997,163.63,163.51,3.9868]
[1746753414878,1.8997,163.63,163.53,6.1152]
[1746753415677,1.8997,163.63,163.51,3.9868]
[1746753415878,1.8997,163.63,163.44,123.24174394]
[1746753416178,1.8997,163.63,163.46,3.9537]
[1746753416379,1.8997,163.63,163.51,15.77279983]
[1746753416579,1.8997,163.63,163.46,3.9537]
[1746753417576,1.8997,163.63,163.5,15.77279983]
[1746753417777,1.8997,163.63,163.51,2.0878]
[1746753418178,1.8997,163.63,163.46,3.9537]
[1746753418378,1.8997,163.63,163.5,6.1162]
[1746753418579,1.8997,163.63,163.46,3.9537]
[1746753418781,1.8997,163.63,163.51,15.77279983]
[1746753418980,6.1107,163.66,163.51,15.77279983]
[1746753419285,4.1022,163.67,163.53,15.77279983]
[1746753419478,4.1022,163.67,163.54,6.0076]
[1746753420279,15.77279983,163.66,163.45,6.40527127]
[1746753420485,15.77279983,163.62,163.46,6.0076]
[1746753420681,15.77279983,163.62,163.49,6.1166]
[1746753420989,528.5,163.63,163.47,15.77279983]
[1746753421284,6.1143,163.56,163.48,6.1169]
[1746753421488,6.1143,163.56,163.46,6.0076]
[1746753421687,16.87503434,163.62,163.46,6.0076]
[1746753421688,15.77279983,163.62,163.46,6.0076]
[1746753422389,4.1022,163.67,163.51,15.77279983]
[1746753422686,4.1022,163.67,163.46,6.0076]
[1746753422988,6.1112,163.64,163.56,6.114]
[1746753423185,4.1022,163.67,163.47,6.36653837]
[1746753423382,19.87499983,163.67,163.47,6.36653837]
[1746753423779,15.77279983,163.63,163.47,6.36653837]
[1746753423982,528.5,163.62,163.48,6.1172]
[1746753424186,528.5,163.62,163.47,6.36653837]
[1746753424187,529.60210818,163.62,163.46,6.0076]
[1746753424384,1.10210818,163.61,163.46,6.0076]
[1746753424594,15.77279983,163.58,163.44,123.24174394]
[1746753424787,6.006,163.57,163.44,123.24174394]
[1746753425186,6.1165,163.5,163.44,123.24174394]
[1746753425585,6.006,163.57,163.44,123.24174394]
[1746753425990,6.1138,163.58,163.47,15.77279983]
[1746753426188,528.5,163.62,163.47,15.77279983]
[1746753426189,528.5,163.62,163.48,3.9185]
[1746753426488,6.1142,163.56,163.48,10.0353]
[1746753426684,2.0261,163.61,163.48,3.9185]
[1746753427296,2.0261,163.61,163.48,10.0355]
[1746753427596,2.0261,163.61,163.45,1.9686]
[1746753427791,6.1165,163.5,163.44,123.24174394]
[1746753428198,357.0,163.58,163.44,123.24174394]
[1746753428598,358.10267697,163.57,163.44,123.24174394]
[1746753428900,1.10267697,163.56,163.44,123.24174394]
[1746753429302,357.0,163.57,163.44,123.24174394]
[1746753429707,357.0,163.57,163.4,5.8871]
[1746753430308,15.77279983,163.51,163.32,2.0774]
[1746753430600,15.77279983,163.51,163.34,6.1221]
[1746753430601,7.22408662,163.5,163.34,6.1221]
[1746753430798,22.99688645,163.5,163.33,1.9619]
[1746753430997,1.10268662,163.49,163.33,1.9619]
[1746753431198,6.1183,163.46,163.33,1.9619]
[1746753431502,6.1183,163.46,163.35,15.77279983]
[1746753431704,6.1175,163.48,163.38,6.1209]
[1746753431904,6.1175,163.48,163.35,15.77279983]
[1746753432202,6.1214,163.5,163.39,15.77279983]
[1746753432512,528.58,163.51,163.42,15.77279983]
[1746753432806,6.1165,163.5,163.42,6.1192]
[1746753433010,528.58,163.51,163.4,17.77869983]
[1746753433208,528.58,163.51,163.4,2.0059]
[1746753433507,6.117,163.49,163.41,6.1198]
[1746753434008,528.58,163.51,163.41,15.77279983]
[1746753434214,5.9622,163.54,163.42,3.9096]
[1746753434513,5.9622,163.54,163.4,2.0059]
[1746753434809,6.1165,163.5,163.42,6.1194]
[1746753435103,5.9622,163.54,163.4,2.0059]
[1746753435302,5.9622,163.54,163.41,15.77279983]
[1746753435810,12.0772,163.54,163.46,6.1179]
[1746753436004,5.9622,163.54,163.46,6.1179]
[1746753436204,528.66,163.59,163.42,15.77279983]
[1746753436503,6.1142,163.57,163.5,6.1165]
[1746753436695,534.6176,163.59,163.45,15.77279983]
[1746753437401,6.1154,163.53,163.46,6.1176]
[1746753437593,534.6176,163.59,163.43,15.77279983]
[1746753437999,1.10249838,163.58,163.43,15.77279983]
[1746753438204,1.10249838,163.58,163.4,17.77869983]
[1746753438407,1.10249838,163.58,163.4,2.0059]
[1746753438803,6.1161,163.52,163.44,6.1187]
[1746753439004,357.0,163.57,163.43,15.77279983]
[1746753439305,357.0,163.57,163.48,6.1169]
[1746753439306,6.1145,163.56,163.48,6.1169]
[1746753439601,6.1145,163.56,163.43,15.77279983]
[1746753439602,534.6176,163.59,163.44,2.0879]
[1746753439798,1.10251991,163.58,163.44,2.0879]
[1746753440003,6.1153,163.53,163.45,6.118]
[1746753440198,534.6176,163.59,163.44,2.0879]
[1746753440504,6.1154,163.53,163.46,6.1179]
[1746753440705,1.10247707,163.58,163.44,2.0879]
[1746753440894,6.1145,163.56,163.49,6.1167]
[1746753441094,357.0,163.63,163.51,15.77279983]
[1746753441304,5.966,163.66,163.51,15.77279983]
[1746753441503,6.1113,163.64,163.52,5.9969]
[1746753441805,5.966,163.66,163.53,15.77279983]
[1746753442009,5.966,163.66,163.55,6.1145]
[1746753442303,5.966,163.66,163.52,5.9969]
[1746753442506,5.966,163.66,163.53,6.1152]
[1746753442702,5.966,163.66,163.52,5.9969]
[1746753443002,358.102105,163.65,163.49,6.1168]
[1746753443205,358.102105,163.65,163.46,15.77279983]
[1746753443404,358.102105,163.64,163.46,15.77279983]
[1746753443602,6.1148,163.55,163.48,6.1169]
[1746753443808,1.9411,163.63,163.46,15.77279983]
[1746753444306,15.77279983,163.61,163.46,15.77279983]
[1746753445200,1.10239277,163.6,163.46,15.77279983]
[1746753445607,1.9411,163.63,163.46,15.77279983]
[1746753445807,1.9411,163.63,163.51,6.1159]
[1746753446203,1.10219989,163.62,163.46,15.77279983]
[1746753446408,1.10219989,163.62,163.51,6.116]
[1746753446603,1.9411,163.63,163.46,15.77279983]
[1746753447509,6.1131,163.59,163.46,15.77279983]
[1746753447714,1.9411,163.63,163.5,15.77279983]
[1746753448109,6.1119,163.63,163.57,6.1137]
[1746753448414,2.0235,163.69,163.54,15.77279983]
[1746753448710,2.0235,163.69,163.55,1.9896]
[1746753448913,1.9509,163.66,163.55,3.8909]
[1746753449105,2.0235,163.69,163.56,2.0066]
[1746753449301,6.1112,163.65,163.59,6.1128]
[1746753449507,2.0235,163.69,163.56,2.0066]
[1746753449704,2.0235,163.69,163.57,15.77279983]
[1746753450112,6.1112,163.65,163.6,6.1126]
[1746753450715,6.1112,163.65,163.61,6.1123]
[1746753450912,2.0235,163.69,163.56,2.0066]
[1746753451211,2.0235,163.69,163.57,6.1135]
[1746753451816,6.1117,163.63,163.58,6.1134]
[1746753452115,2.0235,163.69,163.58,6.1134]
[1746753452414,6.1119,163.63,163.58,6.1134]
[1746753453115,6.1112,163.64,163.59,6.1131]
[1746753453316,2.0235,163.69,163.56,2.0066]
[1746753454013,2.0235,163.69,163.56,17.77939983]
[1746753454616,6.1114,163.64,163.59,6.113]
[1746753455114,2.0235,163.69,163.59,6.113]
[1746753455315,2.0235,163.69,163.6,6.1127]
[1746753455507,2.0235,163.69,163.56,17.77939983]
[1746753455911,6.1113,163.64,163.59,6.113]
[1746753456113,2.0235,163.69,163.56,17.77939983]
[1746753456314,2.0235,163.69,163.56,2.0066]
[1746753456515,2.0235,163.69,163.57,6.1137]
[1746753457018,2.0235,163.69,163.56,2.0066]
[1746753457208,2.0664,163.71,163.58,15.77279983]
[1746753457611,6.1097,163.69,163.58,15.77279983]
[1746753457815,2.0664,163.71,163.58,15.77279983]
[1746753458207,2.0295,163.72,163.58,15.77279983]
[1746753458413,1.9661,163.74,163.62,15.77279983]
[1746753458610,1.9661,163.74,163.56,2.0066]
[1746753458813,358.9661,163.74,163.58,15.77279983]
[1746753459108,6.1108,163.66,163.62,6.1117]
[1746753459310,6.1108,163.66,163.58,15.77279983]
[1746753459614,358.9661,163.74,163.58,15.77279983]
[1746753459815,358.9661,163.74,163.62,6.1125]
[1746753460117,1.10144216,163.73,163.62,6.1125]
[1746753460317,6.111,163.67,163.63,6.1121]
[1746753460514,1.10144216,163.73,163.63,6.1121]
[1746753460914,1.10144216,163.73,163.58,15.77279983]
[1746753463117,1.10144216,163.73,163.63,6.1122]
[1746753463518,1.10144216,163.73,163.58,15.77279983]
[1746753463718,1.10144216,163.73,163.57,2.0049]
[1746753464119,1.10144216,163.73,163.6,6.1131]
[1746753465120,15.77279983,163.72,163.57,2.0049]
[1746753465314,15.77279983,163.72,163.56,2.0066]
[1746753465515,5.15654216,163.71,163.56,2.0066]
[1746753465720,5.15654216,163.71,163.59,6.1134]
[1746753466014,6.1123,163.63,163.56,2.0066]
[1746753466215,358.10144216,163.7,163.56,6.1148]
[1746753466514,6.1132,163.61,163.53,1.9095]
[1746753466715,15.77279983,163.68,163.53,1.9095]
[1746753466921,357.0,163.67,163.51,4.25144]
[1746753467121,6.114,163.59,163.51,4.25144]
[1746753467315,528.14,163.65,163.51,4.25144]
[1746753467521,528.14,163.65,163.52,1.22309197]
[1746753467719,6.1132,163.61,163.55,6.1149]
[1746753468020,6.1132,163.61,163.52,1.22309197]
[1746753468218,6.1132,163.61,163.56,6.1147]
[1746753469321,528.14,163.65,163.52,1.22309197]
[1746753469322,6.1123,163.63,163.58,6.114]
[1746753470323,6.1127,163.62,163.57,6.1144]
[1746753470521,528.14,163.65,163.52,1.22309197]
[1746753471524,6.1136,163.6,163.55,6.1151]
[1746753471824,4.0624,163.64,163.52,1.22309197]
[1746753473522,6.1136,163.6,163.55,6.1151]
[1746753474023,4.0624,163.64,163.52,1.22309197]
[1746753474325,6.1131,163.61,163.52,1.22309197]
[1746753474517,4.0624,163.64,163.52,1.22309197]
[1746753474722,6.1134,163.6,163.56,6.1148]
[1746753475123,4.0624,163.64,163.56,6.1148]
[1746753475325,6.1131,163.61,163.57,6.1144]
[1746753475625,6.1131,163.61,163.52,1.22309197]
[1746753475926,4.0624,163.64,163.55,6.115]
[1746753476822,4.0624,163.64,163.56,1.22279285]
[1746753477223,6.114,163.59,163.56,1.22279285]
[1746753478825,6.1144,163.58,163.56,1.22279285]
[1746753479025,4.0624,163.64,163.56,1.22279285]
[1746753479329,6.114,163.59,163.56,1.22279285]
[1746753479623,4.0624,163.64,163.56,1.22279285]
[1746753480526,6.1145,163.57,163.56,1.22279285]
[1746753480724,358.10206937,163.63,163.47,3.8092]
[1746753480928,9.69031375,163.61,163.45,2.0454]
[1746753481123,9.69031375,163.57,163.42,87.08446896]
[1746753481326,360.9692,163.56,163.42,2.0867]
[1746753481627,529.3627107,163.55,163.42,2.0867]
[1746753481923,6.1188,163.46,163.41,8.1656]
[1746753482128,1.1027107,163.54,163.41,8.1656]
[1746753482328,1.1027107,163.54,163.37,2.0867]
[1746753482329,366.69031375,163.53,163.37,2.0867]
[1746753482531,6.1193,163.44,163.38,6.1215]
[1746753482723,6.1193,163.44,163.37,3.31091497]
[1746753482930,1.1027107,163.52,163.37,3.31091497]
[1746753483123,366.69031375,163.53,163.37,3.31091497]
[1746753483124,6.1198,163.43,163.37,3.31091497]
[1746753483330,357.0,163.51,163.37,3.31091497]
[1746753483331,9.69031375,163.49,163.37,1.22421497]
[1746753483537,361.8445993,163.48,163.37,1.22421497]
[1746753483830,1.1032393,163.47,163.37,1.22421497]
[1746753484135,360.74136,163.48,163.37,1.22421497]
[1746753484324,6.1185,163.47,163.4,6.1206]
[1746753484525,360.74136,163.48,163.37,1.22421497]
[1746753486130,2.0317,163.47,163.37,1.22421497]
[1746753486730,6.1184,163.47,163.41,6.1202]
[1746753486934,360.74136,163.48,163.37,1.22421497]
[1746753487132,6.1197,163.43,163.37,1.22421497]
[1746753487628,6.1202,163.42,163.37,1.22421497]
[1746753488136,360.74136,163.48,163.37,1.22421497]
[1746753488335,356.77796,163.47,163.37,2.22421497]
[1746753488531,356.77796,163.46,163.37,1.0]
[1746753488737,6.123,163.35,163.29,8.0273]
[1746753488929,356.77796,163.43,163.29,1.9025]
[1746753489236,356.77796,163.42,163.29,1.9025]
[1746753489433,1.9103,163.41,163.29,1.9025]
[1746753491035,1.9103,163.41,163.3,6.1242]
[1746753491232,1.9103,163.41,163.24,19.86643453]
[1746753491428,1.9103,163.41,163.25,1.22511485]
[1746753491834,372.56179453,163.4,163.25,1.22511485]
[1746753492035,373.66555364,163.4,163.25,1.22511485]
[1746753492230,6.1252,163.29,163.25,1.22511485]
[1746753492436,528.8,163.35,163.25,1.22511485]
[1746753492736,6.1246,163.3,163.25,7.35151485]
[1746753492937,358.68806,163.34,163.25,1.22511485]
[1746753493533,2.0459,163.33,163.25,1.22511485]
[1746753494035,6.1257,163.27,163.25,1.22511485]
[1746753494438,2.0358,163.32,163.25,1.22511485]
[1746753495942,356.77796,163.31,163.17,1.9197]
[1746753496337,1.10440427,163.3,163.17,1.9197]
[1746753496537,1.10440427,163.3,163.17,8.049]
[1746753496738,1.10440427,163.3,163.17,1.9197]
[1746753497138,6.128,163.21,163.17,1.9197]
[1746753497337,356.77796,163.29,163.17,1.9197]
[1746753497739,6.1275,163.23,163.17,1.9197]
[1746753498240,6.1277,163.22,163.17,8.0491]
[1746753498443,356.77796,163.29,163.17,8.0491]
[1746753498740,1.10458188,163.28,163.17,1.9197]
[1746753498941,356.77796,163.29,163.17,1.9197]
[1746753499343,6.1256,163.28,163.17,1.9197]
[1746753499541,356.77796,163.29,163.17,1.9197]
[1746753499731,356.77796,163.29,163.18,15.78383453]
[1746753500439,6.1256,163.28,163.18,15.78383453]
[1746753500944,2.0459,163.33,163.18,17.00947492]
[1746753501246,358.70066,163.37,163.22,15.78383453]
[1746753501442,358.70066,163.37,163.23,1.9896]
[1746753501642,6.1242,163.32,163.28,6.125]
[1746753501843,358.70066,163.37,163.23,1.9896]
[1746753502245,6.1245,163.31,163.27,6.1254]
[1746753502441,358.70066,163.37,163.23,1.9896]
[1746753502641,1.8931,163.34,163.23,1.9896]
[1746753502948,1.8931,163.34,163.22,6.1275]
[1746753503345,1.8931,163.34,163.23,6.1272]
[1746753503946,1.8931,163.34,163.2,15.78383453]
[1746753504346,6.1264,163.26,163.18,3.21524039]
[1746753504554,356.77796,163.33,163.19,15.78383453]
[1746753504941,356.77796,163.33,163.18,3.21524039]
[1746753505246,356.77796,163.33,163.18,18.99907492]
[1746753505541,6.1256,163.28,163.18,18.99907492]
[1746753505849,356.77796,163.33,163.18,18.99907492]
[1746753506247,1.8931,163.34,163.22,15.78383453]
[1746753506450,528.8,163.35,163.26,15.78383453]
[1746753506648,534.9227,163.35,163.3,6.1243]
[1746753507150,6.1235,163.33,163.28,6.1252]
[1746753507345,528.8,163.35,163.27,5.8713]
[1746753508753,528.8,163.35,163.31,6.1239]
[1746753509347,6.122,163.37,163.32,6.1237]
[1746753509542,4.0469,163.42,163.28,15.78383453]
[1746753509851,4.0469,163.42,163.31,6.1238]
[1746753510046,4.0469,163.42,163.28,15.78383453]
[1746753510354,4.0469,163.42,163.32,6.1237]
[1746753510553,4.0469,163.42,163.27,5.8713]
[1746753511057,4.0469,163.42,163.31,6.1241]
[1746753511755,6.1226,163.36,163.3,6.1245]
[1746753512057,6.1226,163.36,163.27,5.8713]
[1746753512249,6.1226,163.36,163.3,6.1243]
[1746753512450,6.1226,163.36,163.27,5.8713]
[1746753512651,6.1227,163.35,163.27,5.8713]
[1746753512950,6.1227,163.35,163.3,6.1244]
[1746753513157,372.56179453,163.41,163.27,3.9016]
[1746753513551,1.10377301,163.4,163.27,3.9016]
[1746753513856,1.10377301,163.4,163.28,6.1253]
[1746753514355,1.10377301,163.4,163.27,3.9016]
[1746753515256,356.77796,163.41,163.27,3.9016]
[1746753515660,6.122,163.37,163.27,3.9016]
[1746753515859,4.0469,163.42,163.3,9.71900786]
[1746753516151,6.1219,163.38,163.33,6.1234]